Cogmind - Beta 13 @@@ ROGUE MODE // 2024.05.16 @ 19:02:13 Player: BrainTooSmol Result: Self-destructed Performance ------------- Evolutions (1) 500 Regions Visited (2) 400 Robots Destroyed (17) 85 Value Destroyed (204) 204 Prototype IDs (1) 20 Alien Tech Used (0) 0 Bonus (0) 0 TOTAL SCORE: 1209 Bonus ------- None Cogmind --------- Core Integrity 318/400 Matter 238/300 Energy 92/125 System Corruption 0% Temperature Cool (61) Movement Hovering (56) Location -9/Materials Parts ------- > --- POWER (1) -------- Light Ion Engine > --- PROPULSION (3) --- Hover Unit Hover Unit > --- UTILITY (3) ------ Small Storage Unit Sensor Array Signal Interpreter > --- WEAPON (2) ------- Light Assault Rifle Mining Laser > --- INVENTORY (8) ---- Hover Unit Structural Scanner Seismic Detector Light Armor Plating Light Assault Rifle Grenade Launcher Peak State ------------ > --- POWER ------------ Improved Ion Engine > --- PROPULSION ------- Light Treads Wheel > --- UTILITY ---------- Large Storage Unit Sensor Array > --- WEAPON ----------- Medium Laser Light Assault Rifle > --- INVENTORY -------- Light Ion Engine Light Treads Wheel Wheel Hover Unit Hover Unit Improved Flight Unit Improved Flight Unit Improved Flight Unit Structural Scanner Light Armor Plating Light Assault Rifle Light Assault Rifle Grenade Launcher [Rating: 10] Favorites ----------- Power Improved Ion Engine Engine Improved Ion Engine Propulsion Hover Unit Treads Light Treads Leg Aluminum Leg Wheel Wheel Hover Unit Hover Unit Flight Unit Improved Flight Unit Utility Large Storage Unit Device Sensor Array Storage Large Storage Unit Processor Signal Interpreter Protection Light Armor Plating Weapon Light Assault Rifle Energy Gun Medium Laser Ballistic Gun Light Assault Rifle Special Weapon Mining Laser Build | -11 -10 -9 ------- Run | Yrd Mat Mat Slots Evolved 2 | . . 2 Power . | . . . Propulsion 1 | . . 1 Utility 1 | . . 1 Weapon . | . . . Parts Attached 32 | 1 25 6 Power 2 | . 2 . Engine 2 | . 2 . Core . | . . . Reactor . | . . . Propulsion 13 | . 12 1 Treads 4 | . 4 . Leg . | . . . Wheel 5 | . 5 . Hover 3 | . 2 1 Flight 1 | . 1 . Utility 6 | 1 3 2 Device 2 | 1 1 . Storage 2 | . 2 . Processor 1 | . . 1 Hackware . | . . . Protection 1 | . . 1 Artifact . | . . . Weapon 11 | . 8 3 Energy Gun 2 | . 2 . Energy Cannon . | . . . Ballistic Gun 6 | . 5 1 Ballistic Cannon . | . . . Launcher . | . . . Special Weapon 3 | . 1 2 Impact Weapon . | . . . Slashing Weapon . | . . . Piercing Weapon . | . . . Special Melee Weapon . | . . . Unidentified Prototypes 1 | . 1 . Parts Lost 3 | . 2 1 Power . | . . . Propulsion 2 | . 1 1 Utility 1 | . 1 . Weapon . | . . . Highest Loss Streak 1 | . 1 1 To Critical Strikes . | . . . Average Slot Usage (%) 97 | . 96 100 Engine 13 | . 13 11 Treads 9 | . 12 . Wheel 8 | . 11 . Hover 9 | . 3 33 Device 11 | . 11 11 Storage 13 | . 14 11 Processor 2 | . . 10 Energy Gun 8 | . 10 . Ballistic Gun 16 | . 15 19 Special Weapon 2 | . 1 2 Naked Turns . | . . . Heaviest Build 31 | 13 31 11 Greatest Support 20 | 20 20 18 Greatest Overweight (x) 3 | . 3 . Average Overweight (x) 1 | . 1 . Largest Inventory Capacity 15 | 8 15 8 Average Capacity 12 | 8 13 8 Most Carried 15 | 7 15 7 Average Carried 8 | 6 9 6 Final Capacity 8 | 8 8 8 Final Carried 8 | 6 8 6 Class Distribution -------------------- 73% | Mutant 26% | Scavenger-Mutant Dominant Class ---------------- Mutant | -10/Materials Scavenger-Mutant | -9/Materials Resources | -11 -10 -9 ----------- Run | Yrd Mat Mat Matter Collected 578 | 213 311 54 Remotely . | . . . Salvage Created 412 | 18 320 74 Parts 42 | 2 36 4 Haulers Intercepted 2 | . 2 . Recyclers Shooed . | . . . Parts Field Recycled . | . . . Retrieved Matter . | . . . Parts Self-Destructed . | . . . Prevented . | . . . Kills | -11 -10 -9 ------- Run | Yrd Mat Mat Combat Hostiles Destroyed 11 | . 9 2 Guns 11 | . 9 2 Classes Destroyed 5 | 1 3 1 Tunneler 1 | 1 . . Hauler 2 | . 2 . Watcher 3 | . 3 . Swarmer 10 | . 9 1 Sentry 1 | . . 1 Best Kill Streak 4 | 1 4 1 Combat Bots Only 3 | . 3 1 Max Kills in Single Turn 2 | 1 2 1 Gunslinging 1 | . 1 . Exploded . | . . . Melee . | . . . Uniques/NPCs Destroyed . | . . . Combat | -11 -10 -9 -------- Run | Yrd Mat Mat Hostile Shots Fired 69 | . 45 24 Missed 17 | . 10 7 Damage Taken 541 | . 341 200 Core 167 | . 85 82 Absorbed by Shields . | . . . Core Remaining (%) 83 | 100 66 . Volleys Fired 66 | 3 43 20 Largest 2 | 2 2 2 Hottest 120 | 60 120 100 Shots Fired 128 | 6 91 31 Gun 118 | 6 90 22 Cannon . | . . . Launcher . | . . . Special 10 | . 1 9 Kinetic 77 | 3 52 22 Thermal 51 | 3 39 9 Explosive . | . . . Electromagnetic . | . . . Robot Hit Streak 7 | 2 5 7 Robot Miss Streak 5 | 1 5 2 Penetration Max . | . . . Secondary Targets 3 | . 3 . Max Gunslinging Chain 1 | . 1 . Shots Hit Robots 63 | 4 42 17 Core Hits 32 | 3 22 7 Critical Kills . | . . . Critical Parts Destroyed . | . . . Critical Strikes 3 | . 3 . Burn 3 | . 3 . Melee Attacks . | . . . Impact . | . . . Slashing . | . . . Piercing . | . . . Sneak Attacks . | . . . Combat Hostiles . | . . . Follow-up Attacks . | . . . Damage Inflicted 670 | 45 444 181 Guns 622 | 45 444 133 Cannons . | . . . Explosions . | . . . Melee . | . . . Ramming . | . . . Kinetic 321 | 15 173 133 Thermal 349 | 30 271 48 Explosive . | . . . Electromagnetic . | . . . Impact . | . . . Slashing . | . . . Piercing . | . . . Highest Corruption 5 | . 5 . Average Corruption 4 | . 4 . Corruption Purged . | . . . Corruption Blocked . | . . . Effects 43 | . 43 . Message Errors 10 | . 10 . Matter Fused 9 | . 9 . Heat Flow Errors 4 | . 4 . Energy Discharges 5 | . 5 . Data Loss (minor) 8 | . 8 . Data Loss (major) 1 | . 1 . Misfires 5 | . 5 . Alerts 1 | . 1 . Overload Shots . | . . . Overflow Damage . | . . . Projectiles . | . . . Explosions . | . . . Melee . | . . . Knockbacks . | . . . Impact . | . . . Kinetic . | . . . Secondary . | . . . Self-Inflicted Damage . | . . . Shots . | . . . Rammed . | . . . Targets Rammed . | . . . Kicked . | . . . Crushed . | . . . Highest Temperature 254 | 20 254 43 Average Temperature 56 | 15 67 16 Received Heat Transfer 45 | . . 45 Siege Activations . | . . . Robots Corrupted . | . . . Combat Hostiles . | . . . Parts Fried . | . . . Impact Corruptions . | . . . Robots Melted . | . . . Combat Hostiles . | . . . Parts Melted . | . . . Heat Transferred 1174 | 75 999 100 Parts Sabotaged . | . . . Parts Stolen . | . . . Parts Stripped . | . . . Power Chain Reactions . | . . . Alert | -11 -10 -9 ------- Run | Yrd Mat Mat Peak Influence 189 | 5 129 189 Initial 40 | . 3 40 Average 56 | 3 45 99 Maximum Alert Level . | . . . Low Security (%) 100 | 100 100 100 Level 1 . | . . . Level 2 . | . . . Level 3 . | . . . Level 4 . | . . . Level 5 . | . . . High Security . | . . . Max Security . | . . . Squads Dispatched 1 | . . 1 Investigation 1 | . . 1 Extermination . | . . . Reinforcement . | . . . Assault . | . . . Garrison . | . . . Intercept . | . . . Searches Triggered . | . . . Construction Impeded . | . . . Haulers Reinforced . | . . . Active Scanning Responses . | . . . Cargo Convoy Interrupts . | . . . Stealth | -11 -10 -9 --------- Run | Yrd Mat Mat Distress Signals 1 | . . 1 Communications Jammed . | . . . Distress Signals . | . . . Times Spotted 29 | . 17 12 Peak Tracking Total 5 | . 4 5 Tactical Retreats 4 | . . 4 Traps | -11 -10 -9 ------- Run | Yrd Mat Mat Traps Triggered 8 | . 7 1 Indirectly . | . . . Trap Hack Attempts . | . . . Triggered . | . . . Disarmed . | . . . Reprogrammed . | . . . Reused . | . . . Traps Extracted . | . . . Installed . | . . . Triggered . | . . . Machines | -11 -10 -9 ---------- Run | Yrd Mat Mat Machines Disabled . | . . . Max in Single Turn . | . . . Machines Repaired . | . . . Machines Dismantled . | . . . Machines Sabotaged . | . . . Overloaded Fab Kills . | . . . Hacking | -11 -10 -9 --------- Run | Yrd Mat Mat Machines Accessed 9 | . 5 4 Terminals 9 | . 5 4 Fabricators . | . . . Repair Stations . | . . . Recycling Units . | . . . Scanalyzers . | . . . Garrison Access . | . . . Total Hacks 26 | . 17 9 Successful 12 | . 8 4 Failed 13 | . 8 5 Catastrophic 4 | . 3 1 Database Lockouts 1 | . 1 . Manual 24 | . 15 9 Terminals 26 | . 17 9 Fabricators . | . . . Repair Stations . | . . . Recycling Units . | . . . Scanalyzers . | . . . Garrison Access . | . . . Terminal Hacks 7 | . 5 2 Part Schematic 2 | . 1 1 Robot Analysis 3 | . 3 . Terminal Index 1 | . . 1 Dispatch Records 1 | . 1 . Fabricator Hacks . | . . . Repair Station Hacks . | . . . Recycling Unit Hacks . | . . . Scanalyzer . | . . . Garrison Access Hacks . | . . . Unauthorized Hacks 5 | . 3 2 Terminals 5 | . 3 2 Botnet 3 | . 2 1 Operators 2 | . 1 1 Fabricators . | . . . Repair Stations . | . . . Recycling Units . | . . . Scanalyzers . | . . . Garrison Access . | . . . Data Cores Recovered . | . . . Used . | . . . Hacking Detections 8 | . 5 3 Full Trace Events . | . . . Feedback Events . | . . . Feedback Blocked . | . . . Robot Schematics Acquired . | . . . Robots Built . | . . . Authchips . | . . . Time . | . . . Total Robot Build Rating . | . . . Part Schematics Acquired 2 | . 1 1 Parts Built . | . . . Authchips . | . . . Time . | . . . Total Part Build Rating . | . . . Parts Repaired . | . . . Time . | . . . Parts Recycled . | . . . Recycled Matter . | . . . Retrieved Matter . | . . . Retrieved Components . | . . . Parts Scanalyzed . | . . . Part Schematics Acquired . | . . . Parts Damaged . | . . . Bothacking | -11 -10 -9 ------------ Run | Yrd Mat Mat Used RIF Installer . | . . . Robots Hacked . | . . . Non-combat . | . . . Combat . | . . . Robot Hacks Applied . | . . . Relay Couplers Released . | . . . Fabnet Peak Effective % . | . . . Robots Rewired . | . . . Allies Hacked . | . . . Hacks Repelled . | . . . Allies | -11 -10 -9 -------- Run | Yrd Mat Mat Total Allies . | . . . Largest Group . | . . . Highest-Rated Group . | . . . Highest-Rated Ally . | . . . Total Orders . | . . . Ally Attacks . | . . . Total Damage . | . . . Kills . | . . . Allies Corrupted . | . . . Allies Melted . | . . . Intel | -11 -10 -9 ------- Run | Yrd Mat Mat Robot Analysis Total 3 | . 3 . Derelict Logs Recovered . | . . . Drone Launches . | . . . Drone Recoveries . | . . . Exploration | -11 -10 -9 ------------- Run | Yrd Mat Mat Turns Passed 2169 | 58 1639 472 Spaces Moved 1739 | 31 1217 491 Core . | . . . Treads 69 | . 69 . Legs 34 | 31 3 . Wheels 917 | . 917 . Hover 719 | . 228 491 Flight . | . . . Fastest Speed 52 | 120 56 52 Average Speed 93 | 120 109 52 Slowest Speed 240 | 120 240 52 Overloaded Moves . | . . . Propulsion Burnouts . | . . . Robots Hopped . | . . . Cave-ins Triggered . | . . . Exploration Rate (%) 43 | 4 97 28 Regions Visited 2 Branch Regions . Pre-discovered Areas . | . . . Known Exits Taken . | . . . Unknown Exits Taken 2 | 1 1 . Scrap Searched . | . . . Spaces Dug 4 | . . 4 Terrain Destroyed 7 | . 1 6 Melee . | . . . Projectile 7 | . 1 6 AOE . | . . . Terrain Rammed . | . . . Walls Destroyed . | . . . Machines Disabled . | . . . Actions | -11 -10 -9 --------- Run | Yrd Mat Mat Total 2153 | 46 1445 662 Wait 274 | 11 119 144 Move 1737 | 30 1216 491 Hop . | . . . Pick Up 19 | 1 18 . Fast Attach 10 | . 10 . Attach 11 | 1 7 3 Detach 2 | . 1 1 Swap 11 | . 8 3 Drop 23 | . 23 . Fire 66 | 3 43 20 Melee . | . . . Ram . | . . . Kick . | . . . Crush . | . . . Escape Stasis . | . . . Rewire . | . . . Trap . | . . . Miscellaneous . | . . . Route ------- -11/Scrapyard -10/Materials (discovered 4 exits: *Mat x3 / [*Min]) -9/Materials (discovered 1 exit: *Sto) History --------- Turn | Location | Event 1 | -11/Scrapyard | Discovered new exit (range 3) 59 | -11/Scrapyard | Entered Materials 316 | -10/Materials | Build established: Mutant 597 | -10/Materials | Discovered new exit (range 10) 637 | -10/Materials | Central database locked down 719 | -10/Materials | Discovered new exit (range 6) 1145 | -10/Materials | Discovered new exit (range 16) 1300 | -10/Materials | Discovered new exit (range 6) 1698 | -10/Materials | Entered another Materials area 1698 | -9/Materials | Evolved 2 slots: Propulsion x1, Utility x1 1703 | -9/Materials | Discovered new exit (range 14) 1737 | -9/Materials | Identified exit to Storage 1912 | -9/Materials | Build established: Scavenger-Mutant 2170 | -9/Materials | Self-destructed Last Messages --------------- 02105_ U-05 Engineer lays Concrete. 02107_ U-05 Engineer builds a Wall. 02110_ S-10 Pest destroyed. 02118_ R-06 Scavenger collects Flight Unit. 02123_ R-06 Scavenger collects Lgt. Assault Rifle. 02132_ T-07 Excavator is excavating. 02134_ Connecting with Terminal... >>Trojan(Botnet) Trojan loaded successfully. Testing... Terminal linked with 0 systems. Awaiting botnet instructions. 02134_ Connecting with Terminal... >>Schematic(Rocket Launcher) Downloading schematic... Rocket Launcher Rating: 2 Schematic downloaded. 02136_ T-07 Excavator is excavating. 02170_ Hover Unit destroyed. Map ----- +----------------------------------------------------+ | ###+# # #???????# #?# #???????????????? | | ??# # # #???????########?# #???????????????? | | ### # # #????????????????# #???????????????? | | + # #????????????????# #???????????????? | | ### # # #????????????????# #???????????????? | | ??# ######+###??????????????# #???????????????? | | ?## ### #??????????????# #???????????????? | | ?# ## """ #??????????????# #???????????????? | | ?# + """ #??????????????# #???????????????? | | ?# ## """ #??????????????# ##%#???????????????? | | ?###### #??????????????# ## ##??????????????? | | ??????# #??????????????# ## ##??????????????? | | ??????####/###??????????????# ## ##??????????????? | | ?????????? #??????????????###/##%#???????????????? | | ?????????? #??????????????# # #???????????????? | | ?????????? #???##?????????# # #???????????????? | | ???????????#???# #????????# #x#???????????????? | | ???????????????#x ######### # #???????????????? | | ????????????????# / " #???????????????? | | ????????????????# #x####### " # #???????????????? | | ???????# ######x#?????# T # ??x???????????? | | ???????+ #?????# " # ###?????????????? | | ???????# ###### #?????# #x#???????????????? | | ??????????????????# ############ #???????????????? | | ??????????????????# Y kr ;#???# #???????????????? | | ??????????????????##"###;@#????# #???????????????? | | ???????????????????###?## #????# ???????????????? | | ????????????????????????# #????? #???????????????? | | ????????????????????????# #????? ????????????????? | | ????????????????????????# #????? ?????????????o??? | | ???????????????????????? Y ????? ????????????????? | | ???????????????????????? ????? ????????????????? | | ???????????????????????? ????? ????????????????? | | ???????????????????????? ???? ????????????????? | | ???????????????????????? ?????????????????????? | | ????????????????????????# ##?????????????????????? | | ????????????????????????? ???????????????????????? | | ????????????????????????? ???????????????????????? | | ????????????????????????? ???????????????????????? | | ????????????????????????? ???????????????????????? | | ????????????????????????? ???????????????????????? | | ?????????????????????????????????????????????????? | | ?????????????????????????????????????????????????? | | ?????????????????????????????????????????????????? | | ?????????????????????????????????????????????????? | | ?????????????????????????????????????????????????? | | ?????????????????????????????????????????????????? | | ?????????????????????????????????????????????????? | | ?????????????????????????????????????????????????? | | ?????????????????????????????????????????????????? | +----------------------------------------------------+ Best States ------------- Heat Dissipation 28 Energy Generation 12 Energy Capacity 265 Matter Stores 300 Matter Capacity 300 Sight Range 16 Robot Scan Range 14 Terrain Scan Density 10 Armor Coverage 150 Evasion (%) 55 Recoil Reduction 1 Item Schematics ----------------- ECM Suite | -10/Materials | Hacked Rocket Launcher | -9/Materials | Hacked Robot Schematics ------------------ None Fabricated ------------ Nothing Alien Tech Used ----------------- None Achievements -------------- None Challenges ------------ None Game ------ Seed InsulationBackupMultirail Manual? 0 Play Time 00:18:04 Cumulative 111.0 hours Start 2024.05.16 @ 18:43:57 End 2024.05.16 @ 19:02:13 Sessions 3 Manual Loads 0 Difficulty Rogue Special Mode None Game No. 71 Rogue 71 Adventurer 0 Explorer 0 Win Type - Total 2 Types 1/0/0/1/0/0/0/0/0 Lore% 60 Gallery% 52 Achievement% 48 Wizard Run 0 Options --------- Layout 0 ASCII 0 Keyboard 0 Movement Mouse Keybinds 0 Fullscreen 1 Font 18/SmallcapsGlow Map View 76x50 Zoom Use 0% Tactical HUD 1 Map Filters NONE Filters NONE Steam 1 RUN: 323f90e7-4994-4bf3-8a0d-6ce5be301991